[Event "XIX Najdorf Memorial 2019"]
[Site "Warsaw"]
[Date "2019.07.09"]
[Round "4.21"]
[White "Szustakowski, Antoni"]
[Black "Maj, Pawel"]
[Result "1-0"]
[ECO "E12"]
[WhiteElo "2279"]
[BlackElo "2127"]
[Annotator "NA"]
[PlyCount "119"]
[EventDate "2019.07.06"]
[EventType "swiss"]
[EventCountry "POL"]
[SourceTitle "playchess.com"]
[Source "ChessBase"]
[SourceQuality "1"]
[TimeControl "40/5400+30:1800+30"]

1. d4 Nf6 2. c4 e6 3. Nf3 b6 4. a3 Bb7 5. Nc3 d5 6. cxd5 Nxd5 7. e4 Nxc3 8. bxc3 Bxe4 9. Ne5 Nd7 10. Bb5 c6 11. Nxc6 Bxc6 12. Bxc6 Rc8 13. Ba4 Qc7 14. O-O a6 15. c4 Be7 16. Bb2 O-O 17. Rc1 Rfd8 18. Qg4 Nf6 19. Qh3 Qf4 20. Qe3 Qh4 21. h3 Bd6 22. Rc2 Qf4 23. Qxf4 Bxf4 24. g3 Bd6 25. Rfc1 Be7 26. Kg2 Kf8 27. Kf3 Ne8 28. Bb3 Bf6 29. Ke3 Rd7 30. a4 Nd6 31. g4 Nb7 32. Ba2 Rcd8 33. Rd1 e5 34. d5 a5 35. Ba3+ Nd6 36. c5 bxc5 37. Rxc5 Ra7 38. Rb1 Be7 39. Rc3 Nb7 40. Bxe7+ Kxe7 41. Rb6 Nd6 42. Rcc6 Rdd7 43. f4 f6 44. fxe5 fxe5 45. g5 Rac7 46. Bb3 Rxc6 47. dxc6 Rc7 48. Bd5 Nc8 49. Rb5 Kd6 50. Be4 h6 51. h4 hxg5 52. hxg5 Ra7 53. Rb7 Kc5 54. Kd3 g6 55. Rxa7 Nxa7 56. c7 Kd6 57. Bxg6 Kxc7 58. Bh7 Nc8 59. g6 e4+ 60. Kxe4 1-0

[Event "XIX Najdorf Memorial 2019"]
[Site "Warsaw"]
[Date "2019.07.09"]
[Round "4.22"]
[White "Lukasiewicz, Anna"]
[Black "Bus, Konrad"]
[Result "0-1"]
[ECO "B47"]
[WhiteElo "2062"]
[BlackElo "2264"]
[Annotator "NA"]
[PlyCount "52"]
[EventDate "2019.07.06"]
[EventType "swiss"]
[EventCountry "POL"]
[SourceTitle "playchess.com"]
[Source "ChessBase"]
[SourceQuality "1"]
[TimeControl "40/5400+30:1800+30"]

1. e4 c5 2. Nf3 Nc6 3. d4 cxd4 4. Nxd4 e6 5. Nc3 Qc7 6. Be2 a6 7. O-O Nf6 8. Kh1 Bc5 9. Nb3 Be7 10. f4 d6 11. Bf3 O-O 12. Qe2 b5 13. a3 Bb7 14. Be3 b4 15. axb4 Nxb4 16. Na5 d5 17. Nxb7 Qxb7 18. exd5 exd5 19. Bd4 Rfe8 20. Be5 Rad8 21. Rfe1 Bd6 22. Qf2 Bxe5 23. fxe5 Nd7 24. Na4 Nxe5 25. Nc5 Qb6 26. Rxa6 Nxa6 0-1

[Event "XIX Najdorf Memorial 2019"]
[Site "Warsaw"]
[Date "2019.07.09"]
[Round "4.23"]
[White "Krasiewicz, Robert"]
[Black "Antolak, Julia"]
[Result "1-0"]
[ECO "A15"]
[WhiteElo "2017"]
[BlackElo "2258"]
[Annotator "NA"]
[PlyCount "87"]
[EventDate "2019.07.06"]
[EventType "swiss"]
[EventCountry "POL"]
[SourceTitle "playchess.com"]
[Source "ChessBase"]
[SourceQuality "1"]
[TimeControl "40/5400+30:1800+30"]

1. c4 {[%emt 0:08:27]} Nf6 {[%emt 0:00:00]} 2. g3 {[%emt 0:00:09]} e6 {[%emt 0:00:00]} 3. Bg2 {[%emt 0:00:15]} Be7 {[%emt 0:00:06]} 4. Nf3 {[%emt 0:00:13]} O-O {[%emt 0:00:16]} 5. O-O {[%emt 0:00:17]} d5 {[%emt 0:00:10]} 6. b3 {[%emt 0:00:06]} d4 {[%emt 0:00:13]} 7. e3 {[%emt 0:00:15]} c5 {[%emt 0:00:19]} 8. exd4 {[%emt 0:00:21]} cxd4 {[%emt 0:00:08]} 9. d3 {[%emt 0:00:05]} Nc6 {[%emt 0:00:45]} 10. Re1 {[%emt 0:01:16]} Nd7 {[%emt 0:04:19]} 11. Na3 {[%emt 0:01:10]} e5 {[%emt 0:03:03]} 12. Nc2 {[%emt 0:00:54]} a5 {[%emt 0:15:34]} 13. Rb1 {[%emt 0:02:18]} Qc7 {[%emt 0:05:24]} 14. a3 {[%emt 0:32:44]} Nc5 {[%emt 0:05:50]} 15. b4 {[%emt 0:02:41]} Na4 {[%emt 0:02:08]} 16. Bd2 {[%emt 0:00:16]} axb4 {[%emt 0:00:22]} 17. axb4 {[%emt 0:00:04]} Bf6 {[%emt 0:00:40]} 18. h3 {[%emt 0:27:07]} Bf5 {[%emt 0:11:09]} 19. b5 {[%emt 0:04:37]} Nd8 {[%emt 0:04:35]} 20. Qe2 {[%emt 0:00:12]} e4 {[%emt 0:12:36]} 21. dxe4 {[%emt 0:01:24]} d3 {[%emt 0:00:08]} 22. Qxd3 {[%emt 0:00:16]} Nc5 {[%emt 0:00:17]} 23. Qd5 {[%emt 0:01:49]} Be6 {[%emt 0:00:42]} 24. Qh5 {[%emt 0:01:30]} Nd3 {[%emt 0:08:22]} 25. Red1 {[%emt 0:01:26]} g6 {[%emt 0:03:07]} 26. Qh6 {[%emt 0:02:30]} Bg7 {[%emt 0:00:59]} 27. Qh4 {[%emt 0:01:07]} Bxc4 {[%emt 0:04:09]} 28. Ncd4 {[%emt 0:02:32]} Re8 {[%emt 0:01:37]} 29. Bh6 {[%emt 0:00:41]} Bh8 {[%emt 0:02:55]} 30. Bf1 {[%emt 0:01:03]} Ne5 {[%emt 0:00:11]} 31. Rbc1 {[%emt 0:02:03]} Ra4 {[%emt 0:01:06]} 32. Nxe5 {[%emt 0:00:53]} Bxe5 {[%emt 0:02:42]} 33. Nf3 {[%emt 0:00:24]} Bxg3 {[%emt 0:03:03]} 34. Qxg3 {[%emt 0:00:34]} Qxg3+ {[%emt 0:00:08]} 35. fxg3 {[%emt 0:00:05]} Bxf1 {[%emt 0:00:07]} 36. Rxf1 {[%emt 0:00:27]} Raxe4 {[%emt 0:00:07]} 37. Ng5 {[%emt 0:01:00]} R4e7 {[%emt 0:00:06]} 38. Rc8 {[%emt 0:00:40]} f5 {[%emt 0:00:09]} 39. Rd1 {[%emt 0:00:15]} Nf7 {[%emt 0:00:28]} 40. Rxe8+ {[%emt 0:00:00]} Rxe8 {[%emt 0:00:00]} 41. Nxf7 {[%emt 0:00:19]} Kxf7 {[%emt 0:00:08]} 42. Rd7+ {[%emt 0:00:07]} Re7 {[%emt 0:00:03]} 43. Rxe7+ {[%emt 0:00:20]} Kxe7 {[%emt 0:00:04]} 44. b6 {[%emt 0:00:08]} 1-0

[Event "XIX Najdorf Memorial 2019"]
[Site "Warsaw"]
[Date "2019.07.09"]
[Round "4.24"]
[White "Sliwerski, Radoslaw"]
[Black "Czopor, Maciej"]
[Result "0-1"]
[ECO "E20"]
[WhiteElo "2010"]
[BlackElo "2250"]
[Annotator "NA"]
[PlyCount "136"]
[EventDate "2019.07.06"]
[EventType "swiss"]
[EventCountry "POL"]
[SourceTitle "playchess.com"]
[Source "ChessBase"]
[SourceQuality "1"]
[TimeControl "40/5400+30:1800+30"]

1. d4 {[%emt 0:00:58]} Nf6 {[%emt 0:00:00]} 2. c4 {[%emt 0:00:08]} e6 {[%emt 0:00:00]} 3. Nc3 {[%emt 0:00:06]} Bb4 {[%emt 0:00:00]} 4. g3 {[%emt 0:00:04]} c5 {[%emt 0:00:22]} 5. Nf3 {[%emt 0:00:08]} Nc6 {[%emt 0:00:43]} 6. Bg2 {[%emt 0:00:27]} Ne4 {[%emt 0:00:08]} 7. Bd2 {[%emt 0:00:27]} Bxc3 {[%emt 0:01:51]} 8. bxc3 {[%emt 0:00:02]} O-O {[%emt 0:00:26]} 9. O-O {[%emt 0:00:32]} Na5 {[%emt 0:00:40]} 10. dxc5 {[%emt 0:00:59]} Qc7 {[%emt 0:03:49]} 11. Bf4 {[%emt 0:00:24]} Qxc5 {[%emt 0:00:42]} 12. Ne5 {[%emt 0:00:04]} Nxc4 {[%emt 0:07:27]} 13. Qd4 {[%emt 0:01:34]} Qxd4 {[%emt 0:09:01]} 14. cxd4 {[%emt 0:00:03]} Nxe5 {[%emt 0:04:09]} 15. dxe5 {[%emt 0:00:02]} f5 {[%emt 0:01:27]} 16. exf6 {[%emt 0:00:03]} Nxf6 {[%emt 0:00:33]} 17. Bd6 {[%emt 0:00:03]} Rf7 {[%emt 0:00:48]} 18. Rad1 {[%emt 0:00:24]} Ne8 {[%emt 0:05:50]} 19. Be5 {[%emt 0:00:28]} Kf8 {[%emt 0:07:49]} 20. Rd2 {[%emt 0:03:50]} a5 {[%emt 0:09:53]} 21. Rc1 {[%emt 0:02:05]} Ke7 {[%emt 0:02:47]} 22. Rdc2 {[%emt 0:14:01]} d6 {[%emt 0:16:58]} 23. Rxc8 {[%emt 0:03:53]} Rxc8 {[%emt 0:00:21]} 24. Rxc8 {[%emt 0:00:03]} dxe5 {[%emt 0:00:05]} 25. Bxb7 {[%emt 0:02:33]} Nd6 {[%emt 0:02:12]} 26. Rc7+ {[%emt 0:01:21]} Kd8 {[%emt 0:05:41]} 27. Rxf7 {[%emt 0:00:12]} Nxf7 {[%emt 0:00:02]} 28. f3 {[%emt 0:03:46]} Nd6 {[%emt 0:02:41]} 29. Ba6 {[%emt 0:00:47]} Kc7 {[%emt 0:04:16]} 30. Kf2 {[%emt 0:00:12]} Kb6 {[%emt 0:01:20]} 31. Bd3 {[%emt 0:00:07]} h6 {[%emt 0:06:11]} 32. Ke3 {[%emt 0:00:37]} Kc5 {[%emt 0:02:18]} 33. Bh7 {[%emt 0:02:22]} Nc4+ {[%emt 0:02:00]} 34. Kd3 {[%emt 0:03:55]} Nb6 {[%emt 0:00:47]} 35. Bg8 {[%emt 0:01:55]} Kd6 {[%emt 0:00:43]} 36. e4 {[%emt 0:02:04]} Ke7 {[%emt 0:00:45]} 37. f4 {[%emt 0:00:17]} Kf6 {[%emt 0:00:37]} 38. h4 {[%emt 0:03:06]} g6 {[%emt 0:02:52]} 39. fxe5+ {[%emt 0:01:09]} Kxe5 {[%emt 0:00:01]} 40. Bf7 {[%emt 0:00:00]} Kf6 {[%emt 0:00:00]} 41. Be8 {[%emt 0:00:36]} e5 {[%emt 0:01:58]} 42. a3 {[%emt 0:06:46]} g5 {[%emt 0:00:29]} 43. Bh5 {[%emt 0:00:08]} Ke6 {[%emt 0:01:28]} 44. hxg5 {[%emt 0:00:26]} hxg5 {[%emt 0:00:11]} 45. Bd1 {[%emt 0:00:38]} Kd6 {[%emt 0:01:12]} 46. Kc3 {[%emt 0:03:30]} Kc5 {[%emt 0:01:05]} 47. Be2 {[%emt 0:04:35]} Nd7 {[%emt 0:01:00]} 48. Bh5 {[%emt 0:03:34]} Nb6 {[%emt 0:08:47]} 49. Be2 {[%emt 0:00:15]} Nc8 {[%emt 0:00:05]} 50. Bd3 {[%emt 0:07:20]} Nd6 {[%emt 0:00:49]} 51. a4 {[%emt 0:04:41]} Ne8 {[%emt 0:01:15]} 52. Be2 {[%emt 0:05:41]} Nf6 {[%emt 0:00:28]} 53. Kd3 {[%emt 0:00:06]} Kb4 {[%emt 0:00:48]} 54. Bd1 {[%emt 0:00:01]} Nd7 {[%emt 0:05:11]} 55. Ke3 {[%emt 0:00:07]} Nc5 {[%emt 0:08:18]} 56. Kf3 {[%emt 0:00:07]} Nxa4 {[%emt 0:02:15]} 57. Kg4 {[%emt 0:00:10]} Nb2 {[%emt 0:00:29]} 58. Bc2 {[%emt 0:00:29]} Kc3 {[%emt 0:00:35]} 59. Bb1 {[%emt 0:00:02]} a4 {[%emt 0:00:35]} 60. Kxg5 {[%emt 0:00:12]} a3 {[%emt 0:00:47]} 61. Kf5 {[%emt 0:00:49]} Nd3 {[%emt 0:00:47]} 62. Ba2 {[%emt 0:01:12]} Nc1 {[%emt 0:02:38]} 63. g4 {[%emt 0:00:42]} Nxa2 {[%emt 0:00:07]} 64. g5 {[%emt 0:00:04]} Nb4 {[%emt 0:00:09]} 65. g6 {[%emt 0:00:04]} a2 {[%emt 0:00:55]} 66. g7 {[%emt 0:00:02]} Nc6 {[%emt 0:00:11]} 67. Kf6 {[%emt 0:01:15]} a1=Q {[%emt 0:00:08]} 68. g8=Q {[%emt 0:00:04]} Qf1+ {[%emt 0:00:10]} 0-1

[Event "XIX Najdorf Memorial 2019"]
[Site "Warsaw"]
[Date "2019.07.09"]
[Round "4.25"]
[White "Terletsky, Oleg"]
[Black "Adamski, Jan"]
[Result "1-0"]
[ECO "B43"]
[WhiteElo "2408"]
[BlackElo "2183"]
[Annotator "NA"]
[PlyCount "53"]
[EventDate "2019.07.06"]
[EventType "swiss"]
[EventCountry "POL"]
[SourceTitle "playchess.com"]
[Source "ChessBase"]
[SourceQuality "1"]
[TimeControl "40/5400+30:1800+30"]

1. e4 {[%emt 0:00:00]} c5 {[%emt 0:00:31]} 2. Nf3 {[%emt 0:00:00]} e6 {[%emt 0:01:02]} 3. d4 {[%emt 0:00:00]} cxd4 {[%emt 0:00:06]} 4. Nxd4 {[%emt 0:00:00]} a6 {[%emt 0:01:12]} 5. Nc3 {[%emt 0:00:00]} Qc7 {[%emt 0:00:23]} 6. Bd3 {[%emt 0:00:00]} Nf6 {[%emt 0:00:35]} 7. O-O {[%emt 0:00:34]} d6 {[%emt 0:00:40]} 8. Kh1 {[%emt 0:02:30]} Nbd7 {[%emt 0:03:33]} 9. f4 {[%emt 0:00:26]} b5 {[%emt 0:01:06]} 10. Qe2 {[%emt 0:21:34]} Bb7 {[%emt 0:01:50]} 11. Bd2 {[%emt 0:05:32]} Be7 {[%emt 0:01:13]} 12. b4 {[%emt 0:00:25]} O-O {[%emt 0:03:02]} 13. a4 {[%emt 0:00:44]} bxa4 {[%emt 0:01:39]} 14. Rxa4 {[%emt 0:00:47]} Nb6 {[%emt 0:03:49]} 15. Ra3 {[%emt 0:13:23]} d5 {[%emt 0:22:59]} 16. e5 {[%emt 0:01:01]} Ne4 {[%emt 0:04:55]} 17. Nxe4 {[%emt 0:00:47]} dxe4 {[%emt 0:00:05]} 18. Bxe4 {[%emt 0:00:07]} Bxe4 {[%emt 0:01:25]} 19. Qxe4 {[%emt 0:00:01]} Nc4 {[%emt 0:07:02]} 20. Rh3 {[%emt 0:00:57]} g6 {[%emt 0:03:47]} 21. Bc3 {[%emt 0:03:01]} Rac8 {[%emt 0:12:26]} 22. f5 {[%emt 0:09:22]} Nxe5 {[%emt 0:13:16]} 23. f6 {[%emt 0:00:32]} Qc4 {[%emt 0:04:49]} 24. Kg1 {[%emt 0:04:29]} Bd6 {[%emt 0:03:38]} 25. Rxh7 {[%emt 0:02:03]} Kxh7 {[%emt 0:01:25]} 26. Qh4+ {[%emt 0:00:05]} Kg8 {[%emt 0:00:17]} 27. Qh6 {[%emt 0:00:05]} 1-0

[Event "XIX Najdorf Memorial 2019"]
[Site "Warsaw"]
[Date "2019.07.09"]
[Round "4.26"]
[White "Lukasiewicz, Krzysztof"]
[Black "Krishna Teja, N."]
[Result "0-1"]
[ECO "B12"]
[WhiteElo "2172"]
[BlackElo "2368"]
[Annotator "NA"]
[PlyCount "58"]
[EventDate "2019.07.06"]
[EventType "swiss"]
[EventCountry "POL"]
[SourceTitle "playchess.com"]
[Source "ChessBase"]
[SourceQuality "1"]
[TimeControl "40/5400+30:1800+30"]

1. e4 {[%emt 0:00:06]} c6 {[%emt 0:00:00]} 2. d4 {[%emt 0:00:00]} d5 {[%emt 0:00:00]} 3. e5 {[%emt 0:00:39]} Bf5 {[%emt 0:00:00]} 4. Nf3 {[%emt 0:00:04]} e6 {[%emt 0:00:00]} 5. Be2 {[%emt 0:00:05]} c5 {[%emt 0:00:14]} 6. Be3 {[%emt 0:00:47]} cxd4 {[%emt 0:00:14]} 7. Nxd4 {[%emt 0:00:06]} Ne7 {[%emt 0:00:04]} 8. O-O {[%emt 0:02:02]} Nbc6 {[%emt 0:00:14]} 9. Bb5 {[%emt 0:01:26]} Bg6 {[%emt 0:04:15]} 10. c4 {[%emt 0:10:05]} a6 {[%emt 0:13:21]} 11. cxd5 {[%emt 0:13:27]} Qxd5 {[%emt 0:00:37]} 12. Qa4 {[%emt 0:26:21]} Rc8 {[%emt 0:02:33]} 13. Nc3 {[%emt 0:04:08]} Qxe5 {[%emt 0:03:21]} 14. Rfd1 {[%emt 0:01:06]} axb5 {[%emt 0:16:28]} 15. Ndxb5 {[%emt 0:00:10]} Nd5 {[%emt 0:00:11]} 16. Nxd5 {[%emt 0:00:57]} exd5 {[%emt 0:00:03]} 17. Bf4 {[%emt 0:03:56]} Qxb2 {[%emt 0:06:38]} 18. Nc7+ {[%emt 0:01:46]} Rxc7 {[%emt 0:00:48]} 19. Qa8+ {[%emt 0:01:05]} Nd8 {[%emt 0:00:18]} 20. Bxc7 {[%emt 0:00:05]} Be7 {[%emt 0:00:07]} 21. Bxd8 {[%emt 0:05:34]} O-O {[%emt 0:02:07]} 22. Rac1 {[%emt 0:00:37]} Rxd8 {[%emt 0:01:58]} 23. Rc8 {[%emt 0:00:13]} Rxc8 {[%emt 0:00:08]} 24. Qxc8+ {[%emt 0:00:04]} Bf8 {[%emt 0:00:05]} 25. h3 {[%emt 0:01:10]} d4 {[%emt 0:00:13]} 26. Re1 {[%emt 0:00:05]} Qc3 {[%emt 0:00:12]} 27. Qe8 {[%emt 0:00:36]} d3 {[%emt 0:00:08]} 28. Re3 {[%emt 0:00:15]} Qc1+ {[%emt 0:00:16]} 29. Kh2 {[%emt 0:00:04]} d2 {[%emt 0:00:15]} 0-1

[Event "XIX Najdorf Memorial 2019"]
[Site "Warsaw"]
[Date "2019.07.09"]
[Round "4.27"]
[White "Akesson, Ralf"]
[Black "Budnik, Mateusz"]
[Result "1/2-1/2"]
[ECO "E17"]
[WhiteElo "2365"]
[BlackElo "2106"]
[Annotator "NA"]
[PlyCount "113"]
[EventDate "2019.07.06"]
[EventType "swiss"]
[EventCountry "POL"]
[SourceTitle "playchess.com"]
[Source "ChessBase"]
[SourceQuality "1"]
[TimeControl "40/5400+30:1800+30"]

1. d4 {[%emt 0:09:24]} Nf6 {[%emt 0:03:54]} 2. c4 {[%emt 0:00:16]} e6 {[%emt 0:00:07]} 3. Nf3 {[%emt 0:00:23]} b6 {[%emt 0:00:08]} 4. g3 {[%emt 0:01:05]} Bb7 {[%emt 0:00:09]} 5. Bg2 {[%emt 0:00:09]} Be7 {[%emt 0:00:29]} 6. O-O {[%emt 0:00:32]} O-O {[%emt 0:00:11]} 7. Re1 {[%emt 0:00:36]} d5 {[%emt 0:00:42]} 8. cxd5 {[%emt 0:00:30]} exd5 {[%emt 0:00:07]} 9. Nc3 {[%emt 0:00:27]} Nbd7 {[%emt 0:00:36]} 10. Bf4 {[%emt 0:01:03]} Ne4 {[%emt 0:01:10]} 11. Rc1 {[%emt 0:03:58]} Nxc3 {[%emt 0:03:59]} 12. bxc3 {[%emt 0:01:48]} Nf6 {[%emt 0:00:57]} 13. Ne5 {[%emt 0:04:16]} Ne4 {[%emt 0:07:33]} 14. c4 {[%emt 0:15:36]} Bb4 {[%emt 0:06:29]} 15. Rf1 {[%emt 0:01:02]} Ba3 {[%emt 0:01:26]} 16. Rc2 {[%emt 0:01:19]} f6 {[%emt 0:02:04]} 17. Nd3 {[%emt 0:07:19]} dxc4 {[%emt 0:11:46]} 18. Rxc4 {[%emt 0:00:35]} Bd6 {[%emt 0:00:32]} 19. Bc1 {[%emt 0:14:27]} f5 {[%emt 0:06:35]} 20. Nf4 {[%emt 0:03:54]} Qd7 {[%emt 0:05:30]} 21. Qb3 {[%emt 0:06:20]} Qf7 {[%emt 0:05:56]} 22. Rc2 {[%emt 0:01:31]} Qxb3 {[%emt 0:01:56]} 23. axb3 {[%emt 0:00:03]} Rfc8 {[%emt 0:01:14]} 24. f3 {[%emt 0:04:35]} Nf6 {[%emt 0:01:30]} 25. Bh3 {[%emt 0:04:20]} g6 {[%emt 0:03:57]} 26. e4 {[%emt 0:02:43]} fxe4 {[%emt 0:02:17]} 27. Be6+ {[%emt 0:01:20]} Kg7 {[%emt 0:01:58]} 28. Bxc8 {[%emt 0:00:06]} Rxc8 {[%emt 0:00:08]} 29. fxe4 {[%emt 0:00:12]} Nxe4 {[%emt 0:00:38]} 30. Ne6+ {[%emt 0:04:13]} Kg8 {[%emt 0:00:09]} 31. Ng5 {[%emt 0:05:33]} Nxg5 {[%emt 0:01:39]} 32. Bxg5 {[%emt 0:00:02]} Bd5 {[%emt 0:01:07]} 33. Rb2 {[%emt 0:01:01]} a5 {[%emt 0:01:06]} 34. Bf4 {[%emt 0:00:51]} Bb4 {[%emt 0:01:55]} 35. Be5 {[%emt 0:00:31]} c5 {[%emt 0:00:51]} 36. Rbb1 {[%emt 0:01:28]} Be4 {[%emt 0:01:48]} 37. Rbc1 {[%emt 0:03:54]} Bd2 {[%emt 0:00:46]} 38. Bf4 {[%emt 0:00:09]} Bxc1 {[%emt 0:00:12]} 39. Rxc1 {[%emt 0:00:02]} Bd5 {[%emt 0:02:21]} 40. dxc5 {[%emt 0:00:00]} bxc5 {[%emt 0:00:00]} 41. Bd2 {[%emt 0:03:16]} Bxb3 {[%emt 0:04:38]} 42. Bxa5 {[%emt 0:00:15]} c4 {[%emt 0:00:48]} 43. Kf2 {[%emt 0:02:57]} Kf7 {[%emt 0:00:51]} 44. Bc3 {[%emt 0:00:35]} Rc7 {[%emt 0:00:39]} 45. Re1 {[%emt 0:00:55]} Rd7 {[%emt 0:00:51]} 46. Re4 {[%emt 0:02:11]} Ra7 {[%emt 0:01:27]} 47. h4 {[%emt 0:01:14]} Ra2+ {[%emt 0:00:36]} 48. Re2 {[%emt 0:00:23]} Ra4 {[%emt 0:01:13]} 49. Re1 {[%emt 0:00:59]} Ra7 {[%emt 0:00:37]} 50. Re4 {[%emt 0:00:40]} Rc7 {[%emt 0:00:45]} 51. Re2 {[%emt 0:03:14]} Bd1 {[%emt 0:01:32]} 52. Ra2 {[%emt 0:01:06]} Bg4 {[%emt 0:01:32]} 53. Bd4 {[%emt 0:04:53]} Ke6 {[%emt 0:01:58]} 54. Ke3 {[%emt 0:01:08]} Rf7 {[%emt 0:06:11]} 55. Ra6+ {[%emt 0:01:25]} Kd5 {[%emt 0:00:37]} 56. Ra5+ {[%emt 0:00:04]} Ke6 {[%emt 0:00:40]} 57. Ke4 {Ke5+} 1/2-1/2

[Event "XIX Najdorf Memorial 2019"]
[Site "Warsaw"]
[Date "2019.07.09"]
[Round "4.28"]
[White "Malynovskyi, Rostyslav"]
[Black "Malek, Daniel"]
[Result "0-1"]
[ECO "D38"]
[WhiteElo "2156"]
[BlackElo "2362"]
[Annotator "NA"]
[PlyCount "160"]
[EventDate "2019.07.06"]
[EventType "swiss"]
[EventCountry "POL"]
[SourceTitle "playchess.com"]
[Source "ChessBase"]
[SourceQuality "1"]
[TimeControl "40/5400+30:1800+30"]

1. d4 {[%emt 0:00:00]} Nf6 {[%emt 0:00:00]} 2. c4 {[%emt 0:00:00]} e6 {[%emt 0:00:00]} 3. Nf3 {[%emt 0:00:00]} d5 {[%emt 0:00:00]} 4. Nc3 {[%emt 0:00:00]} Bb4 {[%emt 0:00:00]} 5. cxd5 {[%emt 0:00:29]} exd5 {[%emt 0:00:05]} 6. Bg5 {[%emt 0:00:05]} h6 {[%emt 0:00:17]} 7. Bxf6 {[%emt 0:00:34]} Qxf6 {[%emt 0:00:08]} 8. Qa4+ {[%emt 0:00:05]} Nc6 {[%emt 0:00:08]} 9. e3 {[%emt 0:00:06]} O-O {[%emt 0:00:23]} 10. Be2 {[%emt 0:00:09]} Be6 {[%emt 0:03:12]} 11. O-O {[%emt 0:00:50]} a6 {[%emt 0:02:25]} 12. Rfc1 {[%emt 0:00:30]} Bd6 {[%emt 0:00:55]} 13. Qd1 {[%emt 0:00:33]} Ne7 {[%emt 0:05:02]} 14. a3 {[%emt 0:01:18]} g5 {[%emt 0:11:29]} 15. Ne1 {[%emt 0:11:33]} Qg7 {[%emt 0:06:10]} 16. b4 {[%emt 0:20:17]} c6 {[%emt 0:01:50]} 17. Na4 {[%emt 0:02:48]} Rad8 {[%emt 0:02:07]} 18. Nd3 {[%emt 0:01:34]} Ng6 {[%emt 0:11:43]} 19. Ndc5 {[%emt 0:17:34]} Bc8 {[%emt 0:00:30]} 20. Nb6 {[%emt 0:00:06]} f5 {[%emt 0:03:47]} 21. Nxc8 {[%emt 0:05:46]} Bxc5 {[%emt 0:00:14]} 22. Rxc5 {[%emt 0:02:06]} Rxc8 {[%emt 0:00:06]} 23. Qd3 {[%emt 0:09:27]} f4 {[%emt 0:14:15]} 24. Bh5 {[%emt 0:00:29]} Ne7 {[%emt 0:00:20]} 25. Bg4 {[%emt 0:02:49]} Rce8 {[%emt 0:03:58]} 26. Re1 {[%emt 0:00:24]} Nc8 {[%emt 0:04:11]} 27. Bxc8 {[%emt 0:05:51]} Rxc8 {[%emt 0:00:01]} 28. e4 {[%emt 0:00:13]} Qg6 {[%emt 0:05:41]} 29. Rc2 {[%emt 0:05:15]} Rce8 {[%emt 0:02:03]} 30. Rce2 {[%emt 0:00:08]} Re6 {[%emt 0:06:22]} 31. f3 {[%emt 0:03:41]} Rfe8 {[%emt 0:00:11]} 32. Qb3 {[%emt 0:02:53]} Kg7 {[%emt 0:00:25]} 33. e5 {[%emt 0:00:13]} h5 {[%emt 0:00:39]} 34. Qc2 {[%emt 0:00:19]} g4 {[%emt 0:02:38]} 35. Qxg6+ {[%emt 0:03:45]} Kxg6 {[%emt 0:01:11]} 36. Kf2 {[%emt 0:01:46]} Kf5 {[%emt 0:00:07]} 37. a4 {[%emt 0:02:17]} Ra8 {[%emt 0:03:32]} 38. a5 {[%emt 0:02:08]} Rg8 {[%emt 0:01:01]} 39. Rh1 {[%emt 0:00:25]} Reg6 {[%emt 0:00:33]} 40. Rc2 {[%emt 0:00:00]} R8g7 {[%emt 0:00:00]} 41. Ra2 {[%emt 0:05:39]} Rg8 {[%emt 0:09:27]} 42. Rc2 {[%emt 0:00:32]} Rb8 {[%emt 0:03:58]} 43. Rhc1 {[%emt 0:03:34]} Ke6 {[%emt 0:06:20]} 44. Rc3 {[%emt 0:05:16]} Rbg8 {[%emt 0:01:34]} 45. g3 {[%emt 0:03:41]} fxg3+ {[%emt 0:02:47]} 46. hxg3 {[%emt 0:00:09]} gxf3 {[%emt 0:00:07]} 47. Rxf3 {[%emt 0:00:06]} Rg4 {[%emt 0:00:06]} 48. Rd1 {[%emt 0:02:02]} h4 {[%emt 0:02:05]} 49. gxh4 {[%emt 0:00:16]} Rxh4 {[%emt 0:00:09]} 50. Ke2 {[%emt 0:08:45]} Rgg4 {[%emt 0:01:17]} 51. Rfd3 {[%emt 0:01:07]} Rg2+ {[%emt 0:00:37]} 52. Kf3 {[%emt 0:00:43]} Rb2 {[%emt 0:00:15]} 53. Kg3 {[%emt 0:01:52]} Rh6 {[%emt 0:05:02]} 54. Ra3 {[%emt 0:00:34]} Rxb4 {[%emt 0:00:14]} 55. Rdd3 {[%emt 0:00:34]} Rh1 {[%emt 0:00:42]} 56. Rab3 {[%emt 0:01:31]} Rb5 {[%emt 0:04:18]} 57. Kg2 {[%emt 0:01:23]} Rh4 {[%emt 0:01:02]} 58. Kg3 {[%emt 0:00:43]} Rxb3 {[%emt 0:00:26]} 59. Rxb3 {[%emt 0:00:01]} Rxd4 {[%emt 0:00:08]} 60. Rxb7 {[%emt 0:00:04]} Kxe5 {[%emt 0:00:21]} 61. Rb6 {[%emt 0:00:05]} Ra4 {[%emt 0:00:31]} 62. Rxa6 {[%emt 0:00:25]} c5 {[%emt 0:00:06]} 63. Ra8 {[%emt 0:00:02]} Ke4 {[%emt 0:00:19]} 64. a6 {[%emt 0:00:29]} c4 {[%emt 0:00:30]} 65. a7 {[%emt 0:00:05]} Kd3 {[%emt 0:00:19]} 66. Rd8 {[%emt 0:00:54]} Rxa7 {[%emt 0:00:15]} 67. Rxd5+ {[%emt 0:00:08]} Kc2 {[%emt 0:00:15]} 68. Kf3 {[%emt 0:00:13]} Re7 {[%emt 0:00:04]} 69. Rd8 {[%emt 0:00:20]} c3 {[%emt 0:00:05]} 70. Rc8 {[%emt 0:00:03]} Kd2 {[%emt 0:00:06]} 71. Rd8+ {[%emt 0:00:05]} Kc1 {[%emt 0:00:04]} 72. Rc8 {[%emt 0:00:12]} c2 {[%emt 0:00:05]} 73. Kf2 {[%emt 0:00:03]} Re5 {[%emt 0:00:08]} 74. Kf1 {[%emt 0:00:52]} Kd2 {[%emt 0:00:06]} 75. Rd8+ {[%emt 0:00:04]} Kc3 {[%emt 0:00:10]} 76. Rc8+ {[%emt 0:00:06]} Kd3 {[%emt 0:00:06]} 77. Kf2 {[%emt 0:00:08]} Re4 {[%emt 0:00:06]} 78. Rd8+ {[%emt 0:00:12]} Rd4 {[%emt 0:00:06]} 79. Rc8 {[%emt 0:00:04]} Rc4 {[%emt 0:00:05]} 80. Rd8+ {[%emt 0:00:40]} Kc3 {[%emt 0:00:06]} 0-1